fUSD/lending_fUSD_20250826
["ID","MTS","AMOUNT","RATE_DAILY","PERIOD"]
[381451019,1756212654906,-612.06009613,0.00018264,2]
[381451020,1756212654915,-500.0,0.00018264,2]
[381451021,1756212654924,-500.0,0.00018264,2]
[381451022,1756212654933,-150.0,0.00018264,2]
[381451023,1756212654943,-500.0,0.00018264,2]
[381451024,1756212654952,-150.0,0.00018264,2]
[381451025,1756212654961,-150.0,0.00018264,2]
[381451026,1756212654971,-500.0,0.00018264,2]
[381451027,1756212654980,-500.0,0.00018264,2]
[381451028,1756212654990,-500.0,0.00018264,2]
[381451029,1756212654999,-867.0,0.00018264,2]
[381451030,1756212655010,-500.0,0.00018264,2]
[381451031,1756212655020,-724.0,0.00018264,2]
[381451032,1756212655030,-150.0,0.00018264,2]
[381451033,1756212655040,-1339.96,0.00018273,2]
[381451034,1756212655049,-267.0,0.00018304,2]
[381451035,1756212655059,-904.0,0.00018336,2]
[381451036,1756212655068,-6468.36281995,0.00018341,2]
[381451037,1756212655077,-151.0,0.00018346,2]
[381451038,1756212655091,-151.0,0.00018346,2]
[381451039,1756212655100,-1000.0,0.0001837,2]
[381451040,1756212655110,-154.74,0.00018371,2]
[381451041,1756212655120,-959.393155,0.000184,2]
[381451042,1756212655131,-393.9576307,0.00018401,2]
[381451043,1756212655140,-2876.71130254,0.00018517,2]
[381451044,1756212655150,-1000.0,0.00018521,2]
[381451045,1756212655160,-1000.0,0.00018521,2]
[381451046,1756212655171,-1000.0,0.00018521,2]
[381451047,1756212655181,-904.0,0.00018522,2]
[381451048,1756212655192,-406.0,0.00018532,2]
[381451049,1756212655202,-500.0,0.00018538,2]
[381451050,1756212655212,-500.0,0.00018538,2]
[381451051,1756212655222,-287.71065373,0.00018538,2]
[381451052,1756212655232,-500.0,0.00018538,2]
[381451053,1756212655241,-150.0,0.00018538,2]
[381451054,1756212655251,-150.0,0.00018538,2]
[381451055,1756212655262,-500.0,0.00018538,2]
[381451056,1756212655271,-500.0,0.00018538,2]
[381451057,1756212655280,-500.0,0.00018538,2]
[381451058,1756212655289,-867.0,0.00018538,2]
[381451059,1756212655299,-500.0,0.00018538,2]
[381451060,1756212655308,-724.0,0.00018538,2]
[381451061,1756212655318,-200.0,0.00018538,2]
[381451062,1756212655327,-1339.96,0.00018547,2]
[381451063,1756212655337,-403.0,0.0001855,2]
[381451064,1756212655346,-6468.36281995,0.00018563,2]
[381451065,1756212655355,-267.0,0.00018572,2]
[381451066,1756212655364,-454.71078,0.0001863,2]
[381451067,1756212655373,-454.71078,0.0001863,2]
[381451068,1756212655382,-454.71078,0.0001863,2]
[381451069,1756212655391,-454.71078,0.0001863,2]
[381451070,1756212655401,-454.71078,0.0001863,2]
[381451071,1756212655410,-454.71078,0.0001863,2]
[381451072,1756212655419,-454.71078,0.0001863,2]
[381451073,1756212655427,-454.71078,0.0001863,2]
[381451074,1756212655436,-2000.0,0.00018649,2]
[381451075,1756212655446,-163.58,0.00018676,2]
[381451076,1756212655455,-267.0,0.00018681,2]
[381451077,1756212655464,-1000.0,0.0001877,2]
[381451078,1756212655473,-6468.36281995,0.00018784,2]
[381451079,1756212655482,-1000.0,0.000188,3]
[381451080,1756212655491,-1000.0,0.000188,3]
[381451081,1756212655500,-255.2649,0.000188,2]
[381451082,1756212655510,-152.88,0.000188,2]
[381451083,1756212655519,-152.88,0.000188,2]
[381451084,1756212655528,-152.88,0.000188,2]
[381451085,1756212655538,-152.88,0.000188,2]
[381451086,1756212655547,-152.88,0.000188,2]
[381451087,1756212655556,-152.88,0.000188,2]
[381451088,1756212655566,-152.88,0.000188,2]
[381451089,1756212655575,-152.88,0.000188,2]
[381451090,1756212655583,-152.88,0.000188,2]
[381451091,1756212655592,-152.88,0.000188,2]
[381451092,1756212655601,-152.88,0.000188,2]
[381451093,1756212655610,-152.88,0.000188,2]
[381451094,1756212655619,-152.88,0.000188,2]
[381451095,1756212655629,-152.88,0.000188,2]
[381451096,1756212655637,-152.88,0.000188,2]
[381451097,1756212655646,-152.88,0.000188,2]
[381451098,1756212655655,-500.0,0.00018812,2]
[381451099,1756212655664,-500.0,0.00018812,2]
[381451100,1756212655673,-500.0,0.00018812,2]
[381451101,1756212655682,-200.0,0.00018812,2]
[381451102,1756212655692,-226.47561258,0.00018812,2]
[381451103,1756212655702,-500.0,0.00018812,2]
[381451104,1756212655711,-500.0,0.00018812,2]
[381451105,1756212655721,-500.0,0.00018812,2]
[381451106,1756212655732,-867.0,0.00018812,2]
[381451107,1756212655741,-500.0,0.00018812,2]
[381451108,1756212655751,-724.0,0.00018812,2]
[381451109,1756212655762,-904.0,0.00018812,2]
[381451110,1756212655771,-1339.96,0.00018821,2]
[381451111,1756212655780,-150.0,0.00018841,2]
[381451112,1756212655790,-786.73311367,0.00018842,2]
[381451113,1756212655799,-1002.69906644,0.00018843,2]
[381451114,1756212655808,-1218.66501921,0.00018844,2]
[381451115,1756212655818,-1434.63097198,0.00018845,2]
[381451116,1756212655827,-1650.59692476,0.00018846,2]
[381451117,1756212655836,-1650.59692476,0.00018846,2]
[381451118,1756212655845,-1866.56287753,0.00018847,2]
[381451119,1756212655854,-1866.56287753,0.00018847,2]
[381451120,1756212655863,-2082.5288303,0.00018848,2]
[381451121,1756212655872,-2082.5288303,0.00018848,2]
[381451122,1756212655882,-2000.1,0.00018849,2]
[381451123,1756212655891,-2298.49478307,0.00018849,2]
[381451124,1756212655900,-2298.49478307,0.00018849,2]
[381451125,1756212655910,-2514.46073585,0.0001885,2]
[381451126,1756212655920,-2514.46073585,0.0001885,2]
[381451127,1756212655930,-300.0,0.00018857,2]
[381451128,1756212655940,-300.0,0.00018857,2]
[381451129,1756212655950,-300.0,0.00018857,2]
[381451130,1756212655960,-300.0,0.00018857,2]
[381451131,1756212655970,-227.84459479,0.00018857,2]
[381451132,1756212655980,-666.0,0.00018857,2]
[381451133,1756212655989,-300.0,0.00018857,2]
[381451134,1756212655999,-300.0,0.00018857,2]
[381451135,1756212656009,-107368.9521624,0.00018858,2]
[381451136,1756212656018,-2000.0,0.00018859,2]
[381451137,1756212656028,-2000.0,0.00018859,2]
[381451138,1756212656037,-300.0,0.00018859,2]
[381451139,1756212656046,-300.0,0.00018859,2]
[381451140,1756212656057,-300.0,0.00018859,2]
[381451141,1756212656071,-300.0,0.00018859,2]
[381451142,1756212656081,-715.47683129,0.00018859,2]
[381451143,1756212656091,-300.0,0.00018859,2]
[381451144,1756212656102,-300.0,0.00018859,2]
[381451145,1756212656114,-465058.94202696,0.0001886,2]
[381451146,1756212656124,-267.0,0.00018864,2]
[381451147,1756212656135,-556.28740821,0.00018873,2]
[381451148,1756212656145,-581.50935891,0.00018873,2]
[381451149,1756212656156,-500.0,0.00018873,2]
[381451150,1756212656167,-500.0,0.00018873,2]
[381451151,1756212656177,-166.75107507,0.00018873,2]
[381451152,1756212656187,-500.0,0.00018873,2]
[381451153,1756212656196,-500.0,0.00018873,2]
[381451154,1756212656206,-500.0,0.00018873,2]
[381451155,1756212656216,-500.0,0.00018873,2]
[381451156,1756212656225,-500.0,0.00018873,2]
[381451157,1756212656235,-2000.0,0.00018899,2]
[381451158,1756212656245,-872.66760971,0.000189,3]
[381451159,1756212656254,-2000.0,0.000189,6]
[381451160,1756212656263,-526.0205405,0.00018905,3]
[381451161,1756212656273,-190.65596206,0.0001891,2]
[381451162,1756212656282,-500.0,0.00018973,2]
[381451163,1756212656291,-500.0,0.00018973,2]
[381451164,1756212656301,-253.61123389,0.00018973,2]
[381451165,1756212656311,-427.0969966,0.00018973,2]
[381451166,1756212656320,-500.0,0.00018973,2]
[381451167,1756212656329,-500.0,0.00018973,2]
[381451168,1756212656338,-1500.0,0.00018973,2]
[381451169,1756212656348,-500.0,0.00018973,2]
[381451170,1756212656357,-160.98716023,0.00018973,2]
[381451171,1756212656366,-500.0,0.00018973,2]
[381451172,1756212656375,-500.0,0.00018973,2]
[381451173,1756212656384,-500.0,0.00018973,2]
[381451174,1756212656393,-500.0,0.00018973,2]
[381451175,1756212656402,-500.0,0.00018973,2]
[381451176,1756212656411,-500.0,0.00018973,2]
[381451177,1756212656420,-500.0,0.00018973,2]
[381451178,1756212656429,-500.0,0.00018973,2]
[381451179,1756212656439,-500.0,0.00018973,2]
[381451180,1756212656448,-500.3571981,0.00018973,2]
[381451181,1756212656457,-500.0,0.00018973,2]
[381451182,1756212656467,-500.09707482,0.00018973,2]
[381451183,1756212656476,-500.0,0.00018973,2]
[381451184,1756212656485,-503.75114274,0.00018973,2]
[381451185,1756212656494,-500.0,0.00018973,2]
[381451186,1756212656503,-500.0,0.00018973,2]
[381451187,1756212656513,-309.193482,0.00018973,2]
[381451188,1756212656522,-500.0,0.00018973,2]
[381451189,1756212656531,-500.11651083,0.00018973,2]
[381451190,1756212656540,-500.0,0.00018973,2]
[381451191,1756212656549,-500.0,0.00018973,2]
[381451192,1756212656558,-500.0,0.00018973,2]
[381451193,1756212656567,-276.25912775,0.00018973,2]
[381451194,1756212656576,-500.0,0.00018973,2]
[381451195,1756212656585,-500.0,0.00018973,2]
[381451196,1756212656594,-500.0,0.00018973,2]
[381451197,1756212656603,-300.2994,0.00018973,2]
[381451198,1756212656612,-904.0,0.00018999,2]
[381451199,1756212656621,-666.0,0.00018999,2]
[381451200,1756212656630,-300.0,0.00018999,2]
[381451201,1756212656639,-300.0,0.00018999,2]
[381451202,1756212656648,-195.58007981,0.00018999,2]
[381451203,1756212656657,-300.0,0.00018999,2]
[381451204,1756212656666,-300.0,0.00018999,2]
[381451205,1756212656675,-5065.97553237,0.00019,2]
[381451206,1756212656684,-68257.22140797,0.00019,2]
[381451207,1756212656693,-978.68848922,0.00019,2]
[381451208,1756212656702,-158140.30583326,0.00019,2]
[381451209,1756212657470,-281.55,0.00019,2]
[381451210,1756212657481,-4599.6,0.00019,2]
[381451211,1756212657539,-454.71078,0.0001863,2]
[381451212,1756212657548,-8568.7669,0.00019,2]
[381451213,1756212657559,-6442.83541837,0.00019,2]
[381451214,1756212659750,-151.0,0.00018,2]
[381451215,1756212659760,-152.436627,0.00018,2]
[381451216,1756212659769,-151.0,0.00018,2]
[381451217,1756212659779,-151.0,0.00018,2]
[381451218,1756212659789,-151.0,0.00018,2]
[381451219,1756212659797,-189.70448,0.00018,2]
[381451220,1756212659806,-163.458893,0.0001863,2]
[381451221,1756212659818,-291.251887,0.0001863,2]
[381451222,1756212659827,-10.950813,0.0001863,2]
[381451223,1756212659864,-443.759967,0.0001863,2]
[381451224,1756212659874,-454.71078,0.0001863,2]
[381451225,1756212659883,-454.71078,0.0001863,2]
[381451226,1756212659892,-454.71078,0.0001863,2]
[381451227,1756212659902,-376.54828884,0.0001863,2]
[381451228,1756212659913,-78.16249116,0.0001863,2]
[381451229,1756212659923,-2691.91630884,0.00019,2]
[381451230,1756212660107,-152.88,0.000188,2]
[381451231,1756212660118,-45249.1199999,0.00019,2]
[381451232,1756212660224,-454.71078,0.0001863,2]
[381451233,1756212660234,-152.88,0.000188,2]
[381451234,1756212660245,-17.74922,0.00019,2]
[381451235,1756212660256,-5675.0,0.00019,2]
[381451236,1756212663412,-454.71078,0.0001863,2]
[381451237,1756212663422,-454.71078,0.0001863,2]
[381451238,1756212663432,-53.07844,0.0001863,2]
[381451239,1756212663444,-401.63234,0.0001863,2]
[381451240,1756212663454,-74.87624209,0.0001863,2]
[381451241,1756212663601,-343.4,0.0001863,2]
[381451242,1756212663613,-36.43454191,0.0001863,2]
[381451243,1756212663623,-806.4946401,0.00019,2]
[381451244,1756212663635,-1892.60661799,0.00019,2]
[381451245,1756212663695,-302.69065847,0.00019,2]
[381451246,1756212663706,-300.0,0.00019,2]
[381451247,1756212663719,-31509.71922801,0.00019,2]
[381451248,1756212666757,-264.61705,0.00018,2]
[381451249,1756212666768,-264.61705,0.00018,2]
[381451250,1756212666778,-264.61705,0.00018,2]
[381451251,1756212666788,-151.355471,0.00018,2]
[381451252,1756212666798,-73.51932051,0.00018,2]
[381451253,1756212666810,-191.09772949,0.00018,2]
[381451254,1756212666820,-264.61705,0.00018,2]
[381451255,1756212666830,-368.79336419,0.00019,2]
[381451256,1756212666910,-1168.69951761,0.00019,2]
[381451257,1756212666986,-45407.02912404,0.00019,2]
[381451258,1756212666998,-110754.3840166,0.00019,2]
[381451259,1756212667101,-13709.8420749,0.00019,2]
[381451260,1756212667133,-1678.69944,0.00019,2]
[381451261,1756212667145,-23494.39667389,0.00019,2]
[381451270,1756212799775,402.788,0.00028767,120]
[381451284,1756213117799,-1902.0,0.0002,5]
[381451294,1756213319076,161.78,0.00026537,120]
[381451373,1756213833183,-250.0,0.00015,2]
[381451374,1756213833193,-300.0,0.00017,2]
[381451375,1756213833202,-3.20242,0.00017397,2]
[381451376,1756213833214,-255.29934665,0.00017397,2]
[381451377,1756213833245,-577.59846236,0.00017397,2]
[381451378,1756213833255,-217.0,0.0001746,2]
[381451379,1756213833264,-160.0,0.00017643,7]
[381451380,1756213833274,-150.0,0.00017666,2]
[381451381,1756213833284,-177.94,0.00017669,2]
[381451382,1756213833294,-161.78,0.00017692,2]
[381451383,1756213833303,-250.0,0.00017705,2]
[381451384,1756213833314,-1000.0,0.0001772,2]
[381451385,1756213833324,-531.43,0.00017765,2]
[381451386,1756213833334,-200.0,0.00017773,2]
[381451387,1756213833344,-1200.0,0.00017887,2]
[381451388,1756213833354,-267.46074303,0.00017888,2]
[381451389,1756213833364,-1682.46656715,0.00017888,2]
[381451390,1756213833374,-300.0,0.00017898,2]
[381451391,1756213833384,-300.0,0.00017898,2]
[381451392,1756213833394,-1349.2348,0.00017899,2]
[381451393,1756213833405,-1000.0,0.00017899,2]
[381451394,1756213833415,-160.0,0.00018,2]
[381451395,1756213833424,-167.73,0.00018133,2]
[381451396,1756213833436,-532.30464935,0.00018226,2]
[381451397,1756213833446,-217.0,0.0001831,2]
[381451398,1756213833457,-707.29112854,0.00018345,2]
[381451399,1756213833468,-695.39793187,0.00018345,2]
[381451400,1756213833480,-322.6107,0.00018345,2]
[381451401,1756213833491,-7160.04,0.00018356,2]
[381451402,1756213833502,-208.0393152,0.00018429,2]
[381451403,1756213833512,-161.0,0.000185,2]
[381451404,1756213833524,-399.0,0.000185,2]
[381451405,1756213833533,-151.0,0.00018522,2]
[381451406,1756213833543,-151.0,0.00018522,2]
[381451407,1756213833553,-151.0,0.00018522,2]
[381451408,1756213833563,-151.0,0.00018526,2]
[381451409,1756213833574,-3461.428,0.00018546,2]
[381451410,1756213833584,-270.693,0.00018546,2]
[381451411,1756213833595,-177.94,0.00018552,2]
[381451412,1756213833606,-168.0,0.00018675,2]
[381451413,1756213833617,-1500.0,0.00018694,2]
[381451414,1756213833628,-810.97231599,0.0001874,2]
[381451415,1756213833966,-150.0,0.0001875,2]
[381451416,1756213834010,-582.77158341,0.0001875,2]
[381451417,1756213834020,-150.0,0.0001875,2]
[381451418,1756213834030,-825.25889235,0.0001875,2]
[381451419,1756213834040,-150.0,0.0001875,2]
[381451420,1756213834049,-1593.81057441,0.0001875,2]
[381451421,1756213834059,-168.0,0.0001875,2]
[381451422,1756213834070,-150.0,0.00018812,2]
[381451423,1756213834080,-150.0,0.00018812,2]
[381451424,1756213834089,-150.85470165,0.00018812,2]
[381451425,1756213834100,-151.22142382,0.00018812,2]
[381451426,1756213834109,-162.76087067,0.00018812,2]
[381451427,1756213834120,-500.0,0.00018812,2]
[381451428,1756213834129,-150.0,0.00018812,2]
[381451429,1756213834138,-500.0,0.00018812,2]
[381451430,1756213834154,-150.0,0.00018812,2]
[381451431,1756213834170,-150.0,0.00018812,2]
[381451432,1756213834180,-158.47627965,0.00018812,2]
[381451433,1756213834191,-500.0,0.00018812,2]
[381451434,1756213834201,-150.0,0.00018812,2]
[381451435,1756213834211,-500.0,0.00018812,2]
[381451436,1756213834220,-500.0,0.00018812,2]
[381451437,1756213834230,-592.0,0.00018812,2]
[381451438,1756213834239,-150.0,0.00018812,2]
[381451439,1756213834249,-1512.0,0.00018812,2]
[381451440,1756213834258,-500.0,0.00018812,2]
[381451441,1756213834269,-1016.0,0.00018812,2]
[381451442,1756213834278,-500.0,0.00018812,2]
[381451443,1756213834288,-225.11525475,0.00018812,2]
[381451444,1756213834298,-153.70272761,0.00018812,2]
[381451445,1756213834308,-500.0,0.00018812,2]
[381451446,1756213834318,-300.0,0.00018812,2]
[381451447,1756213834328,-150.0,0.00018812,2]
[381451448,1756213834337,-150.0,0.00018812,2]
[381451449,1756213834347,-150.0,0.00018812,2]
[381451450,1756213834358,-722.0,0.00018812,2]
[381451451,1756213834369,-200.0,0.00018848,2]
[381451452,1756213834379,-298.7225245,0.00018892,2]
[381451453,1756213834390,-158.07335007,0.00018892,2]
[381451454,1756213834400,-7606.16182221,0.00018899,2]
[381451455,1756213834410,-166.69639738,0.000189,2]
[381451456,1756213834419,-500.0,0.00018973,2]
[381451457,1756213834428,-500.0,0.00018973,2]
[381451458,1756213834438,-500.0,0.00018973,2]
[381451459,1756213834447,-600.0,0.00018973,2]
[381451460,1756213834457,-170.37813497,0.00018973,2]
[381451461,1756213834467,-500.0,0.00018973,2]
[381451462,1756213834476,-500.0,0.00018973,2]
[381451463,1756213834486,-500.0,0.00018973,2]
[381451464,1756213834496,-500.0,0.00018973,2]
[381451465,1756213834506,-500.0,0.00018973,2]
[381451466,1756213834515,-500.0,0.00018973,2]
[381451467,1756213834526,-500.0,0.00018973,2]
[381451468,1756213834543,-219.16288532,0.00018973,2]
[381451469,1756213834553,-500.0,0.00018973,2]
[381451470,1756213834562,-340.0,0.0001899,2]
[381451471,1756213834573,-395.13829691,0.0001899,2]
[381451472,1756213834583,-500.0,0.0001899,2]
[381451473,1756213834593,-221.80133533,0.0001899,2]
[381451474,1756213834605,-500.0,0.0001899,2]
[381451475,1756213834615,-500.0,0.0001899,2]
[381451476,1756213834626,-500.0,0.0001899,2]
[381451477,1756213834635,-174.12833891,0.0001899,2]
[381451478,1756213834645,-1116.63,0.0001899,2]
[381451479,1756213834655,-284164.95884994,0.00018991,2]
[381451480,1756213835400,-719.22428738,0.00018991,2]
[381451481,1756213835484,-36781.79191941,0.00018991,2]
[381451482,1756213835496,-1440.68287687,0.00018991,2]
[381451483,1756213835506,-875.2130219,0.00018992,2]
[381451484,1756213835516,-155.209,0.00018999,2]
[381451485,1756213835536,-205067.02671563,0.00019,2]
[381451486,1756213835575,-300.08999631,0.00019,2]
[381451487,1756213835586,-20670.31713815,0.00019,2]
[381451488,1756213835597,-625.22875429,0.00019,2]
[381451489,1756213835608,-698.27788693,0.00019,2]
[381451567,1756213840356,-2203.3,0.00019,2]
[381451568,1756213842210,-765.78269916,0.00019,2]
[381451570,1756213842263,-8267.42908523,0.00019,2]
[381451572,1756213842277,-12460.43592955,0.00019,2]
[381451573,1756213842333,-587.43781563,0.00019,2]
[381451574,1756213842391,-1142.16162588,0.00019,2]
[381451578,1756213842429,-5723.06649029,0.00019,2]
[381451579,1756213842440,-764.745945,0.00019,2]
[381451582,1756213845159,-18823.82546255,0.00019,2]
[381451583,1756213845275,-726.85080326,0.00019,2]
[381451586,1756213848162,-626.8265502,0.00019,2]
[381451587,1756213848239,-383.5086327,0.00019,2]
[381451588,1756213848299,-2338.997544,0.00019,2]
[381451589,1756213848312,-4070.64884053,0.00019,2]
[381451590,1756213848333,-2152.14999999,0.00019,2]
[381451591,1756213848481,-458.47014067,0.00019,2]
[381451592,1756213848494,-2026.84782319,0.00019,2]
[381451614,1756214298184,1000.0,0.00028,120]
[381451662,1756215031944,-348.02,0.00013699,2]
[381451663,1756215031953,-52.69691331,0.00014384,2]
[381451664,1756215032019,-99.30308669,0.00014384,2]
[381451665,1756215032029,-2500.0,0.00015068,2]
[381451666,1756215032038,-152.0,0.00015068,2]
[381451667,1756215032049,-152.0,0.00016485,2]
[381451668,1756215032058,-229.0,0.0001783,2]
[381451669,1756215032067,-160.0,0.00017884,7]
[381451670,1756215032077,-165.97163044,0.000179,2]
[381451671,1756215032086,-158.07335005,0.000179,2]
[381451672,1756215032097,-153.23370731,0.000179,2]
[381451673,1756215032106,-300.0,0.00017941,2]
[381451674,1756215032116,-300.0,0.00017942,2]
[381451675,1756215032126,-1200.0,0.00017942,2]
[381451676,1756215032135,-229.0,0.00017942,2]
[381451677,1756215032144,-9811.69275962,0.00017943,2]
[381451706,1756215032490,-158.07335005,0.00017943,2]
[381451709,1756215032514,-500.0,0.00017973,2]
[381451711,1756215032524,-500.0,0.00017973,2]
[381451713,1756215032536,-500.0,0.00017973,2]
[381451716,1756215032546,-500.0,0.00017973,2]
[381451717,1756215032556,-500.0,0.00017973,2]
[381451719,1756215032565,-500.0,0.00017973,2]
[381451722,1756215032575,-2524.82941417,0.00017989,2]
[381451724,1756215032584,-267.46074303,0.00017989,2]
[381451726,1756215032594,-550.0,0.00017998,2]
[381451728,1756215032604,-2000.0,0.00017999,2]
[381451730,1756215032614,-300.0,0.00017999,2]
[381451732,1756215032623,-500.0,0.00017999,2]
[381451734,1756215032632,-176.11879254,0.00017999,2]
[381451735,1756215032642,-190.02315446,0.00017999,2]
[381451738,1756215032652,-254.01187189,0.00017999,2]
[381451739,1756215032661,-32136.6836411,0.00017999,2]
[381451744,1756215032694,-1814.49401314,0.00017999,2]
[381451746,1756215032705,-4635.2443892,0.00017999,2]
[381451748,1756215032717,-6650.7450937,0.00017999,2]
[381451758,1756215032951,-424.03203778,0.00017999,2]
[381451759,1756215032963,-551.9514,0.00017999,2]
[381451769,1756215033104,-5609.99657285,0.00017999,2]
[381452011,1756215039608,-500.0,0.00017998,2]
[381452012,1756215039618,-500.0,0.00017998,2]
[381452013,1756215039628,-537.38,0.00017998,2]
[381452014,1756215039637,-4268.19393799,0.00017999,2]
[381452016,1756215039762,-1208.2,0.00017999,2]
[381452029,1756215040265,-213.27119121,0.0001799,2]
[381452030,1756215040275,-643992.06621563,0.00017999,2]
[381452031,1756215040284,-12628.79221284,0.00018,2]
[381452032,1756215040293,-520072.66701611,0.00018,2]
[381452033,1756215040303,-25339.61988908,0.00018,2]
[381452034,1756215040312,-1515761.80334311,0.00018,2]
[381452050,1756215043628,-585.12,0.00018,2]
[381452051,1756215043640,-309.95769999,0.00018,2]
[381452052,1756215043711,-33418.70659783,0.00018,2]
[381452054,1756215048790,-622.52637911,0.00018,2]
[381452055,1756215048945,-500.0,0.00018,2]
[381452056,1756215051993,-726.9762525,0.00018,2]
[381452057,1756215052127,-1159.64463572,0.00018,2]
[381452156,1756216232085,-376.671894,0.0001363,2]
[381452157,1756216232095,-330.61,0.00013699,2]
[381452158,1756216232104,-300.0,0.00014198,2]
[381452159,1756216232114,-300.0,0.00014198,2]
[381452161,1756216232123,-1200.0,0.00014198,2]
[381452163,1756216232133,-172.80038975,0.00014199,2]
[381452165,1756216232145,-1000.0,0.00014299,3]
[381452167,1756216232155,-150.0,0.00014299,2]
[381452169,1756216232165,-150.0,0.00014999,2]
[381452171,1756216232174,-150.0,0.00015013,2]
[381452173,1756216232184,-150.0,0.00015068,2]
[381452175,1756216232194,-1000.0,0.00015068,3]
[381452177,1756216232203,-150.0,0.00015068,2]
[381452179,1756216232213,-1680.0,0.00015618,2]
[381452181,1756216232222,-405.0,0.000164,2]
[381452183,1756216232232,-299.99,0.000164,4]
[381452184,1756216232241,-265.72,0.00016583,2]
[381452185,1756216232251,-1760.49,0.00016607,2]
[381452186,1756216232260,-150.99,0.00016607,2]
[381452187,1756216232269,-1268.72,0.00016712,2]
[381452188,1756216232279,-158.6,0.00016712,2]
[381452189,1756216232289,-174.35,0.00017168,2]
[381452190,1756216232298,-2351.0,0.0001718,2]
[381452191,1756216232308,-161.78,0.00017245,2]
[381452192,1756216232317,-267.46074303,0.00017254,2]
[381452193,1756216232326,-250.0,0.00017324,2]
[381452194,1756216232336,-1000.0,0.00017399,2]
[381452195,1756216232345,-1000.0,0.00017479,2]
[381452196,1756216232355,-1597.48,0.00017482,2]
[381452197,1756216232365,-1000.0,0.0001753,2]
[381452198,1756216232375,-397.0,0.0001758,2]
[381452199,1756216232384,-173.79,0.00017656,2]
[381452200,1756216232395,-1000.0,0.00017817,2]
[381452201,1756216232404,-1200.0,0.00017888,2]
[381452202,1756216232414,-695.39793187,0.00017889,2]
[381452203,1756216232423,-318.93584135,0.00017889,2]
[381452204,1756216232436,-181.06415865,0.00017889,2]
[381452206,1756216232445,-661.63584538,0.00017889,2]
[381452208,1756216232454,-308.44635776,0.00017889,2]
[381452210,1756216232464,-151.0,0.00017889,2]
[381452212,1756216232474,-322.6107,0.00017889,2]
[381452214,1756216232483,-350.83715074,0.00017889,2]
[381452216,1756216232492,-132.19444116,0.0001789,2]
[381452218,1756216232504,-231.46917178,0.0001789,2]
[381452220,1756216232513,-544.0,0.00017898,2]
[381452222,1756216232523,-3484.44554827,0.00017899,2]
[381452224,1756216232534,-3463.72235173,0.00017899,2]
[381452226,1756216232544,-988.0912,0.00017899,2]
[381452228,1756216232553,-7079.97487055,0.00017899,2]
[381452231,1756216232571,-1750.54861309,0.00017899,2]
[381452233,1756216232580,-1000.0,0.000179,2]
[381452235,1756216232590,-8219.4513869,0.000179,2]
[381452238,1756216232610,-1408.12758517,0.000179,2]
[381452251,1756216237961,-5272.25839342,0.00017898,2]
[381452252,1756216237971,-13783.86882001,0.000179,2]
[381452253,1756216237982,-62.36420792,0.000179,2]
[381452254,1756216237992,-1327.49196499,0.000179,2]
[381452255,1756216238042,-873.14512683,0.000179,2]
[381452256,1756216238054,-2799.36290818,0.000179,2]
[381452257,1756216238064,-176.97715282,0.000179,2]
[381452258,1756216238074,-109.22092177,0.000179,2]
[381452259,1756216238087,-890.77907823,0.000179,2]